[Event "*** Titled Tuesday Blitz"]
[Site "Chess.com"]
[Date "2018.08.07"]
[Round "5"]
[White "LastHeroJr"]
[Black "NikolaGry"]
[Result "1-0"]
[WhiteElo "2513"]
[BlackElo "2513"]
[TimeControl "180+2"]
[EndTime "14:02:59 PDT"]
[Termination "LastHeroJr won on time"]

1. e4 {[%clk 0:03:01.9]} 1... d5 {[%clk 0:03:00.3]} 2. exd5 {[%clk 0:03:02.6]}
2... Nf6 {[%clk 0:03:01.6]} 3. d4 {[%clk 0:03:03.3]} 3... Nxd5 {[%clk
0:03:02.3]} 4. c4 {[%clk 0:03:04.5]} 4... Nb6 {[%clk 0:03:03.1]} 5. Nf3 {[%clk
0:03:05.8]} 5... g6 {[%clk 0:03:03.3]} 6. c5 {[%clk 0:03:06.6]} 6... Nd5 {[%clk
0:03:03.5]} 7. Bc4 {[%clk 0:03:07.4]} 7... Bg7 {[%clk 0:03:02.9]} 8. Qb3 {[%clk
0:03:08.2]} 8... c6 {[%clk 0:03:03.3]} 9. Nc3 {[%clk 0:03:09.4]} 9... O-O {[%clk
0:03:03.7]} 10. O-O {[%clk 0:03:09.6]} 10... Nxc3 {[%clk 0:03:04.6]} 11. bxc3
{[%clk 0:03:11.2]} 11... b5 {[%clk 0:03:04.4]} 12. cxb6 {[%clk 0:03:09.6]} 12...
axb6 {[%clk 0:03:03.2]} 13. Bg5 {[%clk 0:03:00.9]} 13... Ba6 {[%clk 0:02:54]}
14. Rfe1 {[%clk 0:02:53.6]} 14... Bxc4 {[%clk 0:02:52.4]} 15. Qxc4 {[%clk
0:02:54.1]} 15... Re8 {[%clk 0:02:51.3]} 16. a4 {[%clk 0:02:42.6]} 16... Ra5
{[%clk 0:02:24.3]} 17. Rab1 {[%clk 0:02:35.6]} 17... h6 {[%clk 0:01:54]} 18. Bh4
{[%clk 0:02:35.9]} 18... Qd5 {[%clk 0:01:42.8]} 19. Qb4 {[%clk 0:02:25.9]} 19...
e6 {[%clk 0:01:27.7]} 20. c4 {[%clk 0:02:17.5]} 20... Qd7 {[%clk 0:01:03.4]} 21.
c5 {[%clk 0:02:17.7]} 21... Na6 {[%clk 0:00:57.8]} 22. Qd2 {[%clk 0:01:49.7]}
22... Rxa4 {[%clk 0:00:50.9]} 23. cxb6 {[%clk 0:01:50.6]} 23... g5 {[%clk
0:00:32.2]} 24. Bg3 {[%clk 0:01:49.4]} 24... g4 {[%clk 0:00:32.5]} 25. Ne5
{[%clk 0:01:45.4]} 25... Qd5 {[%clk 0:00:32.1]} 26. Nxg4 {[%clk 0:01:32.1]}
26... Rxd4 {[%clk 0:00:31.5]} 27. Qe2 {[%clk 0:01:30.9]} 27... Nb8 {[%clk
0:00:17.1]} 28. Be5 {[%clk 0:01:30.1]} 1-0

[Event "*** Titled Tuesday Blitz"]
[Site "Chess.com"]
[Date "2018.08.07"]
[Round "5"]
[White "francogreek"]
[Black "Marcan2b"]
[Result "0-1"]
[WhiteElo "2408"]
[BlackElo "2316"]
[TimeControl "180+2"]
[EndTime "14:03:02 PDT"]
[Termination "Marcan2b won by resignation"]

1. e4 {[%clk 0:02:58.7]} 1... c5 {[%clk 0:02:59.8]} 2. a3 {[%clk 0:02:59.4]}
2... g6 {[%clk 0:02:55.7]} 3. h4 {[%clk 0:02:59.7]} 3... Nc6 {[%clk 0:02:50.1]}
4. h5 {[%clk 0:03:01]} 4... Bg7 {[%clk 0:02:47.3]} 5. Nc3 {[%clk 0:03:02.1]}
5... d6 {[%clk 0:02:43.4]} 6. Bb5 {[%clk 0:03:02]} 6... Bd7 {[%clk 0:02:43.4]}
7. d3 {[%clk 0:03:02.4]} 7... a6 {[%clk 0:02:43]} 8. Bc4 {[%clk 0:02:56.2]} 8...
b5 {[%clk 0:02:33]} 9. Ba2 {[%clk 0:02:57.2]} 9... b4 {[%clk 0:02:31.3]} 10. Nd5
{[%clk 0:02:57]} 10... e6 {[%clk 0:02:26.9]} 11. Ne3 {[%clk 0:02:57.2]} 11...
bxa3 {[%clk 0:02:23.8]} 12. c3 {[%clk 0:02:55.3]} 12... axb2 {[%clk 0:02:20.1]}
13. Bxb2 {[%clk 0:02:57.2]} 13... Rb8 {[%clk 0:02:20.8]} 14. Qe2 {[%clk
0:02:24.5]} 14... g5 {[%clk 0:01:11.7]} 15. Nc4 {[%clk 0:02:18.1]} 15... Bc8
{[%clk 0:01:04.2]} 16. Nf3 {[%clk 0:02:13.3]} 16... h6 {[%clk 0:01:03.7]} 17.
O-O {[%clk 0:01:50]} 17... Nge7 {[%clk 0:01:02.5]} 18. d4 {[%clk 0:01:44.9]}
18... cxd4 {[%clk 0:01:00.1]} 19. cxd4 {[%clk 0:01:46.8]} 19... d5 {[%clk
0:00:29.9]} 20. exd5 {[%clk 0:01:42.2]} 20... exd5 {[%clk 0:00:31.8]} 21. Nce5
{[%clk 0:01:37.4]} 21... O-O {[%clk 0:00:31]} 22. Ba3 {[%clk 0:01:36.6]} 22...
g4 {[%clk 0:00:29.1]} 23. Ne1 {[%clk 0:00:53.7]} 23... Nxd4 {[%clk 0:00:27.6]}
24. Qe3 {[%clk 0:00:55.1]} 24... Nef5 {[%clk 0:00:27.9]} 25. Qf4 {[%clk
0:00:56.2]} 25... Ne2+ {[%clk 0:00:28.1]} 0-1

[Event "*** Titled Tuesday Blitz"]
[Site "Chess.com"]
[Date "2018.08.07"]
[Round "5"]
[White "dmosesov"]
[Black "NemtsevIgor"]
[Result "1-0"]
[WhiteElo "2261"]
[BlackElo "2371"]
[TimeControl "180+2"]
[EndTime "14:03:03 PDT"]
[Termination "dmosesov won by resignation"]

1. e4 {[%clk 0:03:01.9]} 1... c6 {[%clk 0:03:00.1]} 2. d4 {[%clk 0:03:02.2]}
2... d5 {[%clk 0:03:01.3]} 3. e5 {[%clk 0:03:03.5]} 3... c5 {[%clk 0:03:01.9]}
4. dxc5 {[%clk 0:03:03.9]} 4... Nc6 {[%clk 0:03:02.9]} 5. Bb5 {[%clk 0:02:58.4]}
5... e6 {[%clk 0:03:02.8]} 6. Be3 {[%clk 0:02:56.3]} 6... Ne7 {[%clk 0:03:02.7]}
7. c3 {[%clk 0:02:38.4]} 7... Bd7 {[%clk 0:03:01.7]} 8. Nf3 {[%clk 0:02:25.1]}
8... Nxe5 {[%clk 0:02:55.6]} 9. Nxe5 {[%clk 0:02:27]} 9... Bxb5 {[%clk
0:02:55.7]} 10. c4 {[%clk 0:02:26.8]} 10... Bxc4 {[%clk 0:02:48.3]} 11. Qa4+
{[%clk 0:02:14.2]} 11... Nc6 {[%clk 0:02:30.3]} 12. Nxc6 {[%clk 0:02:11.2]}
12... bxc6 {[%clk 0:02:23]} 13. Qxc6+ {[%clk 0:02:13.1]} 13... Ke7 {[%clk
0:02:24.3]} 14. Nd2 {[%clk 0:01:50.4]} 14... Qc8 {[%clk 0:02:16.1]} 15. Qxc8
{[%clk 0:01:31.9]} 15... Rxc8 {[%clk 0:02:16.5]} 16. Nxc4 {[%clk 0:01:33.5]}
16... dxc4 {[%clk 0:02:17.4]} 17. Rc1 {[%clk 0:01:32.6]} 17... e5 {[%clk
0:02:11.2]} 18. Rxc4 {[%clk 0:01:31.4]} 18... Ke6 {[%clk 0:02:12.5]} 19. Ke2
{[%clk 0:01:27.4]} 19... f5 {[%clk 0:02:04.9]} 20. f3 {[%clk 0:01:24.4]} 20...
Be7 {[%clk 0:02:04.7]} 21. Rd1 {[%clk 0:01:20.4]} 21... f4 {[%clk 0:01:57.3]}
22. Bf2 {[%clk 0:01:18.6]} 22... g5 {[%clk 0:01:58.9]} 23. b4 {[%clk 0:01:12.7]}
23... a6 {[%clk 0:01:59.5]} 24. a4 {[%clk 0:01:11.9]} 24... Rb8 {[%clk
0:01:59.6]} 25. Re4 {[%clk 0:01:00.9]} 25... Rhc8 {[%clk 0:01:45.1]} 26. Rc4
{[%clk 0:00:29.1]} 26... h5 {[%clk 0:01:41.5]} 27. Rb1 {[%clk 0:00:29.9]} 27...
g4 {[%clk 0:01:39.5]} 28. b5 {[%clk 0:00:28.8]} 28... Kd5 {[%clk 0:01:37.4]} 29.
Rc2 {[%clk 0:00:28.6]} 29... axb5 {[%clk 0:01:38]} 30. axb5 {[%clk 0:00:29.6]}
30... Bxc5 {[%clk 0:01:36.3]} 31. Bxc5 {[%clk 0:00:21.5]} 31... Rxc5 {[%clk
0:01:35.9]} 32. Rd1+ {[%clk 0:00:22.1]} 32... Ke6 {[%clk 0:01:34.9]} 33. Rxc5
{[%clk 0:00:22.7]} 1-0

[Event "*** Titled Tuesday Blitz"]
[Site "Chess.com"]
[Date "2018.08.07"]
[Round "5"]
[White "Korchmar_Vasiliy"]
[Black "Alliswell998"]
[Result "1-0"]
[WhiteElo "2615"]
[BlackElo "2427"]
[TimeControl "180+2"]
[EndTime "14:03:16 PDT"]
[Termination "Korchmar_Vasiliy won by checkmate"]

1. d4 {[%clk 0:03:01]} 1... Nf6 {[%clk 0:02:56.5]} 2. Nf3 {[%clk 0:03:02.5]}
2... c5 {[%clk 0:02:54.8]} 3. d5 {[%clk 0:03:02.6]} 3... b5 {[%clk 0:02:53]} 4.
Bg5 {[%clk 0:03:02.6]} 4... Qb6 {[%clk 0:02:53.3]} 5. e3 {[%clk 0:02:52]} 5...
a6 {[%clk 0:02:49.7]} 6. a4 {[%clk 0:02:48.5]} 6... Bb7 {[%clk 0:02:43.8]} 7.
Bxf6 {[%clk 0:02:31.1]} 7... gxf6 {[%clk 0:02:42.2]} 8. Nc3 {[%clk 0:02:22.2]}
8... b4 {[%clk 0:02:41.3]} 9. Ne4 {[%clk 0:02:19.9]} 9... d6 {[%clk 0:02:40.9]}
10. a5 {[%clk 0:02:19]} 10... Qc7 {[%clk 0:02:38.1]} 11. Bc4 {[%clk 0:02:19.9]}
11... Nd7 {[%clk 0:02:37.6]} 12. O-O {[%clk 0:02:20.2]} 12... h5 {[%clk
0:02:37.1]} 13. c3 {[%clk 0:02:15.2]} 13... bxc3 {[%clk 0:02:34.7]} 14. bxc3
{[%clk 0:02:17.1]} 14... h4 {[%clk 0:02:35.8]} 15. h3 {[%clk 0:02:16.9]} 15...
Bg7 {[%clk 0:02:29.2]} 16. Qe2 {[%clk 0:02:11.3]} 16... f5 {[%clk 0:02:21.9]}
17. Neg5 {[%clk 0:02:12.2]} 17... Bxc3 {[%clk 0:02:21]} 18. Rab1 {[%clk
0:02:11.2]} 18... Bf6 {[%clk 0:02:10.9]} 19. e4 {[%clk 0:02:10.2]} 19... f4
{[%clk 0:02:08]} 20. Rb3 {[%clk 0:01:56]} 20... Rg8 {[%clk 0:01:56.2]} 21. Rfb1
{[%clk 0:01:56.4]} 21... Ra7 {[%clk 0:01:48.6]} 22. Nh7 {[%clk 0:01:57.2]} 22...
Bd4 {[%clk 0:01:39.1]} 23. Nxd4 {[%clk 0:01:31.5]} 23... cxd4 {[%clk 0:01:39]}
24. Qb2 {[%clk 0:01:33.1]} 24... Nc5 {[%clk 0:01:31.2]} 25. Qxd4 {[%clk
0:01:33.4]} 25... Nxb3 {[%clk 0:01:24]} 26. Qxa7 {[%clk 0:01:30.7]} 26... Nc5
{[%clk 0:01:20.2]} 27. Bxa6 {[%clk 0:01:20.8]} 27... Rg7 {[%clk 0:00:45.7]} 28.
Bxb7 {[%clk 0:01:10.6]} 28... Nxb7 {[%clk 0:00:44.2]} 29. a6 {[%clk 0:00:57.7]}
29... Qc2 {[%clk 0:00:35]} 30. Qb8+ {[%clk 0:00:54.8]} 30... Nd8 {[%clk
0:00:35.4]} 31. Qb5+ {[%clk 0:00:55.8]} 31... Nc6 {[%clk 0:00:36.4]} 32. Qxc6+
{[%clk 0:00:53.4]} 32... Kd8 {[%clk 0:00:35.1]} 33. Rb8# {[%clk 0:00:52.8]} 1-0

[Event "*** Titled Tuesday Blitz"]
[Site "Chess.com"]
[Date "2018.08.07"]
[Round "5"]
[White "MaxLeto"]
[Black "josiwales"]
[Result "0-1"]
[WhiteElo "2397"]
[BlackElo "2525"]
[TimeControl "180+2"]
[EndTime "14:03:26 PDT"]
[Termination "josiwales won on time"]

1. d4 {[%clk 0:02:55.4]} 1... d5 {[%clk 0:02:53]} 2. Bf4 {[%clk 0:02:56.2]} 2...
Nf6 {[%clk 0:02:52.7]} 3. e3 {[%clk 0:02:57.4]} 3... c5 {[%clk 0:02:50.3]} 4. c3
{[%clk 0:02:58.1]} 4... Nc6 {[%clk 0:02:51.3]} 5. Nd2 {[%clk 0:02:58]} 5... Bf5
{[%clk 0:02:48.8]} 6. Ngf3 {[%clk 0:02:50.7]} 6... Qb6 {[%clk 0:02:46.2]} 7. Qb3
{[%clk 0:02:44.7]} 7... c4 {[%clk 0:02:46]} 8. Qxb6 {[%clk 0:02:45.7]} 8... axb6
{[%clk 0:02:47.1]} 9. a3 {[%clk 0:02:47.3]} 9... e6 {[%clk 0:02:47.7]} 10. Rc1
{[%clk 0:02:43]} 10... Ra5 {[%clk 0:02:46.2]} 11. Nh4 {[%clk 0:02:34.3]} 11...
Rb5 {[%clk 0:02:42.3]} 12. Nxf5 {[%clk 0:02:34.4]} 12... exf5 {[%clk 0:02:44.2]}
13. Rc2 {[%clk 0:02:34.7]} 13... Ne4 {[%clk 0:02:39.5]} 14. f3 {[%clk
0:02:30.5]} 14... Nxd2 {[%clk 0:02:36.6]} 15. Kxd2 {[%clk 0:02:31.7]} 15... Kd7
{[%clk 0:02:37.6]} 16. e4 {[%clk 0:02:25.2]} 16... fxe4 {[%clk 0:02:33.7]} 17.
fxe4 {[%clk 0:02:26.3]} 17... Na5 {[%clk 0:02:32.2]} 18. Ke3 {[%clk 0:01:42.7]}
18... dxe4 {[%clk 0:02:25.6]} 19. Kxe4 {[%clk 0:01:42.3]} 19... Bd6 {[%clk
0:02:23]} 20. Bxd6 {[%clk 0:01:27.1]} 20... Kxd6 {[%clk 0:02:24.9]} 21. g4
{[%clk 0:01:26.6]} 21... h5 {[%clk 0:02:17.5]} 22. Be2 {[%clk 0:01:18]} 22...
hxg4 {[%clk 0:02:12.7]} 23. Kf4 {[%clk 0:00:56.9]} 23... f5 {[%clk 0:01:59.6]}
24. Bf1 {[%clk 0:00:45.1]} 24... Rh5 {[%clk 0:01:52.2]} 25. Re2 {[%clk
0:00:43.8]} 25... g5+ {[%clk 0:01:50.3]} 26. Kg3 {[%clk 0:00:45.2]} 26... Nc6
{[%clk 0:01:45.7]} 27. Rf2 {[%clk 0:00:40.1]} 27... Rh4 {[%clk 0:01:33.2]} 28.
Bxc4 {[%clk 0:00:38.2]} 28... f4+ {[%clk 0:01:29.7]} 29. Rxf4 {[%clk 0:00:37.4]}
29... Rxb2 {[%clk 0:01:22.6]} 30. Rf6+ {[%clk 0:00:17.4]} 30... Kc7 {[%clk
0:01:18.7]} 31. Rf7+ {[%clk 0:00:13]} 31... Kb8 {[%clk 0:01:18.9]} 32. Be6
{[%clk 0:00:14.3]} 32... Rc2 {[%clk 0:01:17.2]} 33. Rf8+ {[%clk 0:00:04.9]}
33... Ka7 {[%clk 0:01:18.1]} 0-1

[Event "*** Titled Tuesday Blitz"]
[Site "Chess.com"]
[Date "2018.08.07"]
[Round "5"]
[White "BillForster"]
[Black "FearNoEvil12"]
[Result "0-1"]
[WhiteElo "1632"]
[BlackElo "1944"]
[TimeControl "180+2"]
[EndTime "14:03:59 PDT"]
[Termination "FearNoEvil12 won by resignation"]

1. d4 {[%clk 0:03:01.9]} 1... b5 {[%clk 0:02:59.5]} 2. e4 {[%clk 0:02:56.2]}
2... a6 {[%clk 0:02:58]} 3. f4 {[%clk 0:02:53.9]} 3... Bb7 {[%clk 0:02:58.8]} 4.
Bd3 {[%clk 0:02:53.9]} 4... e6 {[%clk 0:03:00.2]} 5. Nf3 {[%clk 0:02:52.9]} 5...
c5 {[%clk 0:03:00.8]} 6. c3 {[%clk 0:02:45]} 6... Nf6 {[%clk 0:03:00.6]} 7. Qe2
{[%clk 0:02:40.1]} 7... Qb6 {[%clk 0:02:56.5]} 8. Be3 {[%clk 0:02:25.8]} 8...
Bxe4 {[%clk 0:02:38.6]} 9. dxc5 {[%clk 0:02:02.7]} 9... Bxd3 {[%clk 0:02:38]}
10. cxb6 {[%clk 0:01:56.5]} 10... Bxe2 {[%clk 0:02:36.8]} 11. Kxe2 {[%clk
0:01:57.4]} 11... Nc6 {[%clk 0:02:36.2]} 12. a4 {[%clk 0:01:41.3]} 12... b4
{[%clk 0:02:34.3]} 13. a5 {[%clk 0:01:39.8]} 13... Nd5 {[%clk 0:02:33.2]} 14.
cxb4 {[%clk 0:01:18.2]} 14... Bxb4 {[%clk 0:02:32.2]} 15. Nbd2 {[%clk 0:01:12]}
15... Nxe3 {[%clk 0:02:30.1]} 16. Kxe3 {[%clk 0:01:11]} 16... Bxa5 {[%clk
0:02:30.8]} 17. Nc4 {[%clk 0:01:09]} 17... Bb4 {[%clk 0:02:27.3]} 18. b7 {[%clk
0:01:01.8]} 18... Rb8 {[%clk 0:02:26.6]} 19. Rxa6 {[%clk 0:00:58.5]} 19... Ke7
{[%clk 0:02:27.5]} 20. Nce5 {[%clk 0:00:38.2]} 20... Nxe5 {[%clk 0:02:23.3]} 21.
Nxe5 {[%clk 0:00:36.8]} 21... Rxb7 {[%clk 0:02:24.1]} 22. Rd1 {[%clk 0:00:32]}
22... f6 {[%clk 0:02:13.4]} 23. Nc4 {[%clk 0:00:26.3]} 23... Rc8 {[%clk
0:02:02.9]} 24. Nd6 {[%clk 0:00:24.7]} 24... Bxd6 {[%clk 0:02:01.8]} 25. Raxd6
{[%clk 0:00:25.1]} 25... Rc2 {[%clk 0:01:59.8]} 26. R6d2 {[%clk 0:00:23.5]}
26... Rb3+ {[%clk 0:01:49.5]} 27. Ke2 {[%clk 0:00:19.7]} 27... Rbxb2 {[%clk
0:01:47.6]} 28. Rxc2 {[%clk 0:00:18.5]} 28... Rxc2+ {[%clk 0:01:47.7]} 29. Kf3
{[%clk 0:00:17.5]} 29... d5 {[%clk 0:01:47.6]} 30. Rb1 {[%clk 0:00:15.8]} 30...
Rc7 {[%clk 0:01:47.7]} 31. Ke3 {[%clk 0:00:14.2]} 31... h6 {[%clk 0:01:43.4]}
32. g3 {[%clk 0:00:14.6]} 32... Kd6 {[%clk 0:01:43.6]} 33. Kd4 {[%clk
0:00:13.5]} 33... e5+ {[%clk 0:01:40.5]} 34. fxe5+ {[%clk 0:00:13.4]} 34...
fxe5+ {[%clk 0:01:41.1]} 35. Kd3 {[%clk 0:00:13.6]} 35... e4+ {[%clk 0:01:40.8]}
36. Ke3 {[%clk 0:00:12.6]} 36... Ke5 {[%clk 0:01:39.7]} 37. Rf1 {[%clk
0:00:10.9]} 37... d4+ {[%clk 0:01:38.2]} 38. Kd2 {[%clk 0:00:10.6]} 38... e3+
{[%clk 0:01:37.5]} 39. Kd3 {[%clk 0:00:10]} 39... Rc3+ {[%clk 0:01:37.7]} 40.
Ke2 {[%clk 0:00:09.9]} 40... Rc2+ {[%clk 0:01:35.2]} 41. Kd3 {[%clk 0:00:08.6]}
41... Rd2+ {[%clk 0:01:34.1]} 42. Kc4 {[%clk 0:00:08.4]} 42... e2 {[%clk
0:01:33.8]} 43. Re1 {[%clk 0:00:08.4]} 43... Ke4 {[%clk 0:01:34.1]} 44. Kb3
{[%clk 0:00:07.3]} 44... d3 {[%clk 0:01:32.9]} 45. Kc3 {[%clk 0:00:07.7]} 45...
Rc2+ {[%clk 0:01:33.2]} 46. Kb3 {[%clk 0:00:07.4]} 46... Ke3 {[%clk 0:01:34.7]}
0-1

[Event "*** Titled Tuesday Blitz"]
[Site "Chess.com"]
[Date "2018.08.07"]
[Round "5"]
[White "aa175"]
[Black "Mimsychess"]
[Result "0-1"]
[WhiteElo "1920"]
[BlackElo "2269"]
[TimeControl "180+2"]
[EndTime "14:03:59 PDT"]
[Termination "Mimsychess won on time"]

1. e4 {[%clk 0:03:01.9]} 1... c6 {[%clk 0:03:00.2]} 2. c4 {[%clk 0:03:00.4]}
2... d5 {[%clk 0:03:00.9]} 3. cxd5 {[%clk 0:02:59.4]} 3... cxd5 {[%clk
0:03:02.8]} 4. e5 {[%clk 0:03:01.3]} 4... Nc6 {[%clk 0:03:01.5]} 5. d4 {[%clk
0:03:00.8]} 5... Bf5 {[%clk 0:02:57.8]} 6. Nc3 {[%clk 0:02:59.8]} 6... e6 {[%clk
0:02:58.9]} 7. Nf3 {[%clk 0:03:00]} 7... h6 {[%clk 0:02:50]} 8. Bb5 {[%clk
0:02:58.4]} 8... Ne7 {[%clk 0:02:44]} 9. Qa4 {[%clk 0:02:53.7]} 9... a6 {[%clk
0:02:43.3]} 10. Be2 {[%clk 0:02:46.5]} 10... Nc8 {[%clk 0:02:29]} 11. b4 {[%clk
0:02:26.8]} 11... Bxb4 {[%clk 0:02:27.2]} 12. Bd2 {[%clk 0:02:24.7]} 12... O-O
{[%clk 0:02:19.7]} 13. O-O {[%clk 0:02:21.9]} 13... Nb6 {[%clk 0:02:19.7]} 14.
Qb3 {[%clk 0:02:21.7]} 14... Rc8 {[%clk 0:02:03.7]} 15. a3 {[%clk 0:01:53.9]}
15... Ba5 {[%clk 0:01:54]} 16. Rfc1 {[%clk 0:01:38.1]} 16... Nc4 {[%clk
0:01:48.8]} 17. Be1 {[%clk 0:01:11.6]} 17... b5 {[%clk 0:01:48.6]} 18. Qd1
{[%clk 0:00:40.5]} 18... Bb6 {[%clk 0:01:33.3]} 19. a4 {[%clk 0:00:20.4]} 19...
b4 {[%clk 0:01:26]} 20. Na2 {[%clk 0:00:13.9]} 20... a5 {[%clk 0:01:09.6]} 21.
Rab1 {[%clk 0:00:07]} 21... Bxb1 {[%clk 0:01:08.8]} 22. Rxb1 {[%clk 0:00:07.8]}
22... f6 {[%clk 0:01:05.2]} 23. Bd3 {[%clk 0:00:02.4]} 23... fxe5 {[%clk
0:01:03.5]} 24. dxe5 {[%clk 0:00:03.7]} 24... N6xe5 {[%clk 0:01:00.5]} 25. Be2
{[%clk 0:00:02.2]} 25... Qf6 {[%clk 0:00:54.9]} 26. Nxe5 {[%clk 0:00:02.3]}
26... Bxf2+ {[%clk 0:00:52.8]} 27. Bxf2 {[%clk 0:00:02.3]} 27... Qxf2+ {[%clk
0:00:53.3]} 28. Kh1 {[%clk 0:00:04.2]} 28... Nxe5 {[%clk 0:00:54.2]} 29. Bd3
{[%clk 0:00:03.2]} 29... Rf4 {[%clk 0:00:41.1]} 30. Bf1 {[%clk 0:00:02.3]} 30...
Rcf8 {[%clk 0:00:35.5]} 0-1

[Event "*** Titled Tuesday Blitz"]
[Site "Chess.com"]
[Date "2018.08.07"]
[Round "5"]
[White "jposthuma"]
[Black "dereito"]
[Result "0-1"]
[WhiteElo "2378"]
[BlackElo "2257"]
[TimeControl "180+2"]
[EndTime "14:04:01 PDT"]
[Termination "dereito won by checkmate"]

1. d4 {[%clk 0:03:01.9]} 1... f5 {[%clk 0:02:58.8]} 2. c4 {[%clk 0:03:02.1]}
2... Nf6 {[%clk 0:02:54.7]} 3. g3 {[%clk 0:03:02.5]} 3... e6 {[%clk 0:02:56.1]}
4. Bg2 {[%clk 0:03:03]} 4... Be7 {[%clk 0:02:52.9]} 5. Nc3 {[%clk 0:03:01.4]}
5... O-O {[%clk 0:02:54.8]} 6. Nh3 {[%clk 0:03:01.8]} 6... d5 {[%clk 0:02:42.1]}
7. O-O {[%clk 0:02:41.4]} 7... dxc4 {[%clk 0:02:36.1]} 8. e4 {[%clk 0:02:19.1]}
8... fxe4 {[%clk 0:02:33.6]} 9. Nxe4 {[%clk 0:02:18.7]} 9... Nc6 {[%clk
0:02:25.4]} 10. Nxf6+ {[%clk 0:01:49.7]} 10... Bxf6 {[%clk 0:02:25.8]} 11. d5
{[%clk 0:01:50.8]} 11... Nd4 {[%clk 0:02:20.3]} 12. dxe6 {[%clk 0:01:26.5]}
12... Bxe6 {[%clk 0:02:19.7]} 13. Nf4 {[%clk 0:01:22.7]} 13... Bf7 {[%clk
0:02:15.9]} 14. Bxb7 {[%clk 0:01:16.7]} 14... Rb8 {[%clk 0:02:14.9]} 15. Bg2
{[%clk 0:01:16.7]} 15... c5 {[%clk 0:02:03.7]} 16. Re1 {[%clk 0:01:02.2]} 16...
Re8 {[%clk 0:02:03.8]} 17. Rxe8+ {[%clk 0:00:31.3]} 17... Qxe8 {[%clk
0:02:03.4]} 18. Nd5 {[%clk 0:00:31.6]} 18... Ne2+ {[%clk 0:01:58.9]} 19. Kf1
{[%clk 0:00:28.2]} 19... Bxb2 {[%clk 0:02:00.8]} 20. Bxb2 {[%clk 0:00:13.5]}
20... Rxb2 {[%clk 0:01:59.3]} 21. Ne3 {[%clk 0:00:06.6]} 21... Nd4 {[%clk
0:01:53]} 22. Bd5 {[%clk 0:00:05.8]} 22... Bxd5 {[%clk 0:01:45.8]} 23. Nxd5
{[%clk 0:00:03.3]} 23... Qe4 {[%clk 0:01:45.9]} 24. Kg1 {[%clk 0:00:02.9]} 24...
Ne2+ {[%clk 0:01:41.8]} 25. Qxe2 {[%clk 0:00:02.4]} 25... Qxe2 {[%clk
0:01:42.3]} 26. Rf1 {[%clk 0:00:02.5]} 26... Rd2 {[%clk 0:01:35.7]} 27. Nf4
{[%clk 0:00:02.5]} 27... Qf3 {[%clk 0:01:35.5]} 28. h4 {[%clk 0:00:02.6]} 28...
c3 {[%clk 0:01:36.6]} 29. Nh3 {[%clk 0:00:03]} 29... c2 {[%clk 0:01:37.6]} 30.
Ng5 {[%clk 0:00:02.5]} 30... Qxf2+ {[%clk 0:01:37.8]} 31. Rxf2 {[%clk
0:00:03.5]} 31... c1=Q+ {[%clk 0:01:39.4]} 32. Kg2 {[%clk 0:00:04.5]} 32...
Rxf2+ {[%clk 0:01:40.3]} 33. Kxf2 {[%clk 0:00:06.4]} 33... Qc2+ {[%clk
0:01:40.6]} 34. Ke3 {[%clk 0:00:06.9]} 34... Qxa2 {[%clk 0:01:41.4]} 35. Ke4
{[%clk 0:00:08]} 35... h6 {[%clk 0:01:42.1]} 36. Nf3 {[%clk 0:00:08.7]} 36...
Qe6+ {[%clk 0:01:42.4]} 37. Kf4 {[%clk 0:00:09.5]} 37... c4 {[%clk 0:01:42.6]}
38. g4 {[%clk 0:00:10.6]} 38... c3 {[%clk 0:01:41.6]} 39. g5 {[%clk 0:00:12]}
39... hxg5+ {[%clk 0:01:41.6]} 40. Nxg5 {[%clk 0:00:12.9]} 40... Qf6+ {[%clk
0:01:42.8]} 41. Kg4 {[%clk 0:00:13.8]} 41... c2 {[%clk 0:01:44.7]} 42. Kh5
{[%clk 0:00:15]} 42... Qh6+ {[%clk 0:01:45.1]} 43. Kg4 {[%clk 0:00:16]} 43...
c1=Q {[%clk 0:01:47]} 44. Nf3 {[%clk 0:00:16.9]} 44... Qd1 {[%clk 0:01:46.7]}
45. h5 {[%clk 0:00:15.4]} 45... Qxh5+ {[%clk 0:01:48]} 46. Kxh5 {[%clk
0:00:14.5]} 46... Qxf3+ {[%clk 0:01:49.4]} 47. Kg6 {[%clk 0:00:16.3]} 47... Qf6+
{[%clk 0:01:50]} 48. Kh5 {[%clk 0:00:17.4]} 48... Qh6+ {[%clk 0:01:51.2]} 49.
Kg4 {[%clk 0:00:18.4]} 49... a5 {[%clk 0:01:52.8]} 50. Kf5 {[%clk 0:00:20.3]}
50... a4 {[%clk 0:01:54.7]} 51. Ke4 {[%clk 0:00:21.2]} 51... a3 {[%clk
0:01:56.6]} 52. Kd3 {[%clk 0:00:23.1]} 52... a2 {[%clk 0:01:58.5]} 53. Kc2
{[%clk 0:00:24.9]} 53... a1=Q {[%clk 0:02:00.4]} 54. Kb3 {[%clk 0:00:26.8]}
54... Qd2 {[%clk 0:01:58.8]} 55. Kc4 {[%clk 0:00:27.7]} 55... Qac1+ {[%clk
0:02:00.4]} 56. Kb3 {[%clk 0:00:28.5]} 56... Qdb2+ {[%clk 0:02:02]} 57. Ka4
{[%clk 0:00:30.1]} 57... Qca1# {[%clk 0:02:03.5]} 0-1

[Event "*** Titled Tuesday Blitz"]
[Site "Chess.com"]
[Date "2018.08.07"]
[Round "5"]
[White "GMCanty"]
[Black "Titus369"]
[Result "0-1"]
[WhiteElo "2243"]
[BlackElo "2271"]
[TimeControl "180+2"]
[EndTime "14:04:02 PDT"]
[Termination "Titus369 won by resignation"]

1. e4 {[%clk 0:02:00]} 1... c5 {[%clk 0:03:00.3]} 2. c3 {[%clk 0:02:00.9]} 2...
g6 {[%clk 0:03:00.5]} 3. d4 {[%clk 0:02:02.3]} 3... cxd4 {[%clk 0:03:02.4]} 4.
cxd4 {[%clk 0:02:04]} 4... d5 {[%clk 0:03:03.5]} 5. Nc3 {[%clk 0:02:05.9]} 5...
dxe4 {[%clk 0:03:02.2]} 6. Bc4 {[%clk 0:02:07.3]} 6... Bg7 {[%clk 0:03:02.3]} 7.
Qb3 {[%clk 0:02:08.8]} 7... e6 {[%clk 0:03:03.2]} 8. d5 {[%clk 0:02:10.3]} 8...
Nf6 {[%clk 0:02:42.7]} 9. dxe6 {[%clk 0:02:09.2]} 9... fxe6 {[%clk 0:02:37.2]}
10. Bxe6 {[%clk 0:02:11.1]} 10... Bxe6 {[%clk 0:02:38]} 11. Qxe6+ {[%clk
0:02:09.9]} 11... Qe7 {[%clk 0:02:39.4]} 12. Qxe7+ {[%clk 0:02:11.2]} 12... Kxe7
{[%clk 0:02:41]} 13. Bg5 {[%clk 0:02:12.7]} 13... Nc6 {[%clk 0:02:36.5]} 14.
O-O-O {[%clk 0:02:11.6]} 14... Rac8 {[%clk 0:02:16.3]} 15. Kb1 {[%clk
0:02:11.7]} 15... h6 {[%clk 0:02:00.4]} 16. Bxf6+ {[%clk 0:02:12]} 16... Bxf6
{[%clk 0:02:02.3]} 17. Nxe4 {[%clk 0:02:12.1]} 17... Bd4 {[%clk 0:02:00.6]} 18.
Nf3 {[%clk 0:02:02.8]} 18... Rhd8 {[%clk 0:01:50.8]} 19. Rhe1 {[%clk 0:01:30.8]}
19... Kf7 {[%clk 0:01:35.9]} 20. Rd3 {[%clk 0:01:29.4]} 20... Kg7 {[%clk
0:01:15.1]} 21. Red1 {[%clk 0:01:23.3]} 21... Bb6 {[%clk 0:01:14.4]} 22. Nd6
{[%clk 0:01:16.3]} 22... Rc7 {[%clk 0:01:08.4]} 23. a3 {[%clk 0:00:51.7]} 23...
Bxf2 {[%clk 0:00:55.2]} 24. b4 {[%clk 0:00:49.2]} 24... a6 {[%clk 0:00:48.4]}
25. R3d2 {[%clk 0:00:41]} 25... Be3 {[%clk 0:00:48.6]} 26. Rd3 {[%clk
0:00:40.9]} 26... Bf2 {[%clk 0:00:49.3]} 27. Ka2 {[%clk 0:00:40.4]} 27... Re7
{[%clk 0:00:45.3]} 28. R1d2 {[%clk 0:00:37.7]} 28... Bb6 {[%clk 0:00:42]} 29.
Kb3 {[%clk 0:00:32.9]} 29... Re3 {[%clk 0:00:29.2]} 30. Rxe3 {[%clk 0:00:33.6]}
30... Bxe3 {[%clk 0:00:31.1]} 31. Rd3 {[%clk 0:00:34.9]} 31... Bf4 {[%clk
0:00:29.2]} 32. Nd4 {[%clk 0:00:22.3]} 32... Rxd6 {[%clk 0:00:22.1]} 33. Kc4
{[%clk 0:00:17.3]} 0-1